fUSD/lending_fUSD_20240422
["ID","MTS","AMOUNT","RATE_DAILY","PERIOD"]
[323233687,1713818106511,-151.0,0.00024411,7]
[323233688,1713818106526,-154.39465349,0.0002443,2]
[323233689,1713818106541,-157.0559743,0.00024433,2]
[323233690,1713818106556,-176.62427225,0.00024443,2]
[323233691,1713818106572,-152.54386207,0.00024451,2]
[323233692,1713818106586,-166.66666666,0.00024454,2]
[323233693,1713818106603,-292.15,0.00024458,2]
[323233694,1713818106619,-153.48106534,0.00024458,2]
[323233695,1713818106634,-154.51581865,0.00024492,2]
[323233696,1713818106651,-807.94175111,0.000245,2]
[323233697,1713818106665,-150.0,0.000245,2]
[323233698,1713818106681,-154.51581865,0.00024502,2]
[323233699,1713818106695,-766.62411611,0.00024507,2]
[323233700,1713818106709,-483.43153924,0.00024564,2]
[323233701,1713818106725,-178.59,0.00024566,2]
[323233702,1713818106742,-166.84086599,0.00024571,2]
[323233703,1713818106758,-161.58831606,0.00024587,2]
[323233704,1713818106775,-152.54386207,0.00024589,2]
[323233705,1713818106792,-4600.59,0.000246,2]
[323233706,1713818106808,-3164.95,0.000246,2]
[323233707,1713818106823,-2555.01307111,0.00024641,2]
[323233708,1713818106838,-153.48106534,0.00024643,2]
[323233709,1713818106853,-666.0,0.00024657,2]
[323233710,1713818106868,-499.63360391,0.00024657,2]
[323233711,1713818106884,-200.0,0.00024658,2]
[323233712,1713818106900,-462.59,0.00024658,2]
[323233713,1713818106918,-273.28453,0.00024658,7]
[323233714,1713818106933,-273.28453,0.00024658,7]
[323233715,1713818106950,-273.28453,0.00024658,7]
[323233716,1713818106967,-273.28453,0.00024658,7]
[323233717,1713818106982,-273.28453,0.00024658,7]
[323233718,1713818107000,-273.28453,0.00024658,7]
[323233719,1713818107015,-273.28453,0.00024658,7]
[323233720,1713818107030,-273.28453,0.00024658,7]
[323233721,1713818107047,-273.28453,0.00024658,7]
[323233722,1713818107064,-273.28453,0.00024658,7]
[323233723,1713818107079,-273.28453,0.00024658,7]
[323233724,1713818107095,-273.28453,0.00024658,7]
[323233725,1713818107111,-273.28453,0.00024658,7]
[323233726,1713818107126,-273.28453,0.00024658,7]
[323233727,1713818107143,-273.28453,0.00024658,7]
[323233728,1713818107158,-273.28453,0.00024658,7]
[323233729,1713818107174,-273.28453,0.00024658,7]
[323233730,1713818107190,-273.28453,0.00024658,7]
[323233731,1713818107206,-273.28453,0.00024658,7]
[323233732,1713818107222,-273.284536,0.00024658,7]
[323233733,1713818107236,-8416.33,0.00024658,4]
[323233734,1713818107251,-241.4,0.00024658,4]
[323233735,1713818107265,-698.52084509,0.00024658,2]
[323233736,1713818107278,-166.81715258,0.00024667,2]
[323233737,1713818107292,-2555.01307111,0.00024678,2]
[323233738,1713818107307,-689.01229427,0.00024704,2]
[323233739,1713818107322,-150.0,0.00024705,2]
[323233740,1713818107337,-2555.01307111,0.00024712,2]
[323233741,1713818107352,-483.43153924,0.00024718,2]
[323233742,1713818107367,-166.66666667,0.00024724,2]
[323233743,1713818107380,-2555.01307111,0.00024743,2]
[323233744,1713818107394,-152.54386207,0.00024758,2]
[323233745,1713818107408,-154.51581865,0.0002476,2]
[323233746,1713818107421,-151.25667543,0.00024779,2]
[323233747,1713818107435,-483.43153924,0.00024798,2]
[323233748,1713818107448,-153.48106534,0.00024822,2]
[323233749,1713818107462,-35256.983,0.00024851,2]
[323233750,1713818107476,-3328.563,0.00024851,2]
[323233751,1713818107490,-500.0,0.00024855,2]
[323233752,1713818107504,-811.70626689,0.00024856,2]
[323233753,1713818107518,-1003.06,0.0002486,2]
[323233754,1713818107531,-153.63168074,0.00024867,2]
[323233755,1713818107545,-153.48106534,0.00024878,2]
[323233756,1713818107557,-632.0,0.000249,13]
[323233757,1713818107570,-151.0,0.0002491,4]
[323233758,1713818107585,-394.52557543,0.00024911,2]
[323233759,1713818107600,-2221.0,0.00024959,2]
[323233760,1713818107613,-1363.88283876,0.00025,2]
[323233761,1713818107627,-6003.71909225,0.00025,2]
[323233762,1713818107641,-1946.19063831,0.00025,2]
[323233763,1713818107655,-398.43837319,0.00025,2]
[323233764,1713818107668,-32873.09954704,0.00025,4]
[323233765,1713818107683,-171.77248398,0.00025,2]
[323233766,1713818107705,-2847.50066108,0.00025,2]
[323233767,1713818107723,-455.47943265,0.00025,2]
[323233768,1713818107739,-509.32,0.00025,2]
[323233769,1713818107755,-600000.0,0.00025,2]
[323233770,1713818107769,-220000.0,0.00025,2]
[323233771,1713818107785,-4988.61571699,0.00025,2]
[323233772,1713818107800,-300.0,0.00025,5]
[323233773,1713818107816,-60000.0,0.00025,4]
[323233774,1713818107835,-420.98958249,0.00025,6]
[323233775,1713818107851,-5035.09071688,0.00025,2]
[323233776,1713818107869,-5000.0,0.00025,2]
[323233777,1713818107889,-692.0,0.00025,3]
[323233778,1713818107906,-26876.44493086,0.00025,7]
[323233779,1713818107925,-1200.0,0.00025,26]
[323233780,1713818107941,-27040.22195128,0.00025,30]
[323233781,1713818107956,-83350.63862146,0.00025,30]
[323233782,1713818107972,-251.35136275,0.00025,10]
[323233783,1713818107987,-500.0,0.00025,2]
[323233784,1713818108002,-150.0,0.00025,2]
[323233785,1713818108018,-652.4,0.00025,2]
[323233786,1713818108037,-270172.92107154,0.00025,2]
[323233787,1713818108053,-230.32,0.00025,2]
[323233788,1713818108068,-150.0,0.00025,2]
[323233789,1713818108086,-400.71,0.00025,10]
[323233790,1713818108102,-7007.07729267,0.00025,2]
[323233791,1713818108119,-180.30013125,0.00025,2]
[323233792,1713818108133,-612.47003388,0.00025,2]
[323233793,1713818108149,-14527.13420939,0.00025,2]
[323233794,1713818108163,-155.0,0.00025,2]
[323233795,1713818108178,-200.0,0.00025,2]
[323233796,1713818108194,-150.0,0.00025,2]
[323233797,1713818108210,-2033.22851919,0.00025,2]
[323233798,1713818108227,-2033.22851919,0.00025,2]
[323233799,1713818108241,-2033.22851919,0.00025,2]
[323233800,1713818108255,-2687.70844671,0.00025,2]
[323233801,1713818108269,-2687.70844671,0.00025,2]
[323233802,1713818108285,-130073.2669057,0.00025,2]
[323233803,1713818108300,-2687.70844671,0.00025,2]
[323233804,1713818108316,-46637.89587646,0.00025,2]
[323233805,1713818109808,-500.0,0.00013972,2]
[323233806,1713818109823,-500.0,0.00013972,2]
[323233807,1713818109836,-150.11,0.00014,2]
[323233808,1713818109851,-500.0,0.0001452,2]
[323233809,1713818109866,-1707.85474741,0.00016,2]
[323233810,1713818109879,-83435.37102924,0.00025,2]
[323233811,1713818109896,-130073.2669057,0.00025,2]
[323233812,1713818109915,-130073.2669057,0.00025,2]
[323233813,1713818109928,-130073.2669057,0.00025,2]
[323233814,1713818109944,-1000.0,0.00025,2]
[323233815,1713818109958,-1003.06,0.0002501,2]
[323233816,1713818109972,-154.51581865,0.00025011,2]
[323233817,1713818109986,-2555.01307111,0.00025026,2]
[323233818,1713818110002,-156.03468475,0.00025038,2]
[323233819,1713818110017,-811.70626689,0.00025043,2]
[323233820,1713818110032,-154.51581865,0.00025048,2]
[323233821,1713818110046,-154.39465349,0.0002505,2]
[323233822,1713818110062,-16162.68411271,0.000251,2]
[323233823,1713818110078,-3167.68266578,0.000251,2]
[323233824,1713818110094,-14802.41,0.000251,2]
[323233825,1713818110109,-14802.41,0.000251,2]
[323233826,1713818110124,-14802.41,0.000251,2]
[323233827,1713818110138,-14802.41,0.000251,2]
[323233828,1713818110154,-14802.41,0.000251,2]
[323233829,1713818110168,-14802.41,0.000251,2]
[323233830,1713818110182,-14802.41,0.000251,2]
[323233831,1713818110196,-14802.41,0.000251,2]
[323233832,1713818110210,-14802.41,0.000251,2]
[323233833,1713818110225,-14802.41,0.000251,2]
[323233834,1713818110239,-14802.41,0.000251,2]
[323233835,1713818110253,-14802.41,0.000251,2]
[323233836,1713818110267,-14802.41,0.000251,2]
[323233837,1713818110283,-14802.41,0.000251,2]
[323233838,1713818110297,-14802.41,0.000251,2]
[323233839,1713818110311,-14802.41,0.000251,2]
[323233840,1713818110324,-14802.41,0.000251,2]
[323233841,1713818110338,-14802.41,0.000251,2]
[323233842,1713818110351,-8942.47485661,0.000251,2]
[323233843,1713818110370,-385.401005,0.000251,2]
[323233844,1713818112418,-291.88,0.00012192,2]
[323233845,1713818112429,-784.31400694,0.0001258,2]
[323233846,1713818112438,-480.60598926,0.00012606,2]
[323233847,1713818112713,-720.134902,0.00012606,2]
[323233848,1713818153391,251.45,0.00010522,2]
[323233849,1713818165550,180.06,9.039e-05,2]
[323233850,1713818468480,180.45,0.00010204,2]
[323233851,1713818773465,206.6354,0.00022,60]
[323233852,1713818851459,157.042305,0.00022,30]
[323233853,1713819030948,180.06,9.674e-05,2]
[323233878,1713819031869,-175.5,0.00011299,2]
[323233880,1713819031879,-200.0,0.00011299,2]
[323233881,1713819031890,-150.0,0.00012031,2]
[323233882,1713819031901,-2705.13302066,0.00012032,2]
[323233883,1713819031979,-21194.86697934,0.00012032,2]
[323233884,1713819031987,-1489.34,0.00012045,2]
[323233885,1713819031997,-150.0,0.00012082,2]
[323233886,1713819032006,-3303.42590008,0.00012097,2]
[323233887,1713819032016,-6782.78462326,0.00012097,2]
[323233888,1713819032042,-218.86947666,0.00012097,2]
[323233889,1713819032051,-500.0,0.00012133,2]
[323233890,1713819032060,-150.0,0.00012134,2]
[323233891,1713819032069,-1108.77,0.00012141,2]
[323233892,1713819032079,-155.20120873,0.00012191,2]
[323233893,1713819032089,-367.79926255,0.00012191,2]
[323233894,1713819032111,-1028.98073745,0.00012191,2]
[323233895,1713819032121,-396.32,0.00012191,2]
[323233896,1713819032130,-499.99,0.00012191,2]
[323233897,1713819032139,-150.99,0.00012191,2]
[323233898,1713819032148,-509.39,0.00012202,2]
[323233900,1713819032157,-4927.12,0.0001221,2]
[323233902,1713819032166,-10011.71164453,0.0001221,2]
[323233904,1713819032178,-923.66043016,0.0001221,2]
[323233919,1713819037969,-250.0,0.00012093,2]
[323233920,1713819037979,-336.31792531,0.0001221,2]
[323233921,1713819037988,-881.41597754,0.0001221,2]
[323233922,1713819038024,-848.26710872,0.0001221,2]
[323233923,1713819038035,-438.29,0.0001221,2]
[323233943,1713819039509,7502.7992,0.00011199,2]
[323233945,1713819041965,-642.35214,0.0001221,2]
[323233946,1713819042021,-263.40563939,0.0001221,2]
[323233947,1713819042179,-869.93913435,0.0001221,2]
[323233948,1713819042190,-164.21,0.00012349,2]
[323233949,1713819042200,-1000.0,0.00012361,2]
[323233950,1713819042211,-378.15805157,0.00012442,2]
[323233951,1713819042223,-1125.92742036,0.00012442,2]
[323233952,1713819042237,-2741.75352421,0.00012442,2]
[323233956,1713819043098,-654.02,0.00012442,2]
[323233957,1713819043159,-8707.40100386,0.00012442,2]
[323233958,1713819043169,-180.45,0.00012468,2]
[323233959,1713819043179,-571.0538058,0.000128,2]
[323233960,1713819043189,-981.5073,0.00012899,2]
[323233961,1713819043200,-7750.96230258,0.00012999,2]
[323233962,1713819043210,-4727.62770514,0.00012999,2]
[323233963,1713819043220,-191.46244167,0.00012999,2]
[323233964,1713819043231,-11453.89917202,0.00012999,2]
[323233965,1713819043242,-1750.0,0.00013,2]
[323233966,1713819043252,-500.0,0.00013425,2]
[323233967,1713819043261,-764.3448685,0.0001347,2]
[323233968,1713819043271,-2010.499,0.00013592,2]
[323233969,1713819043281,-1561.5369,0.00013596,2]
[323233970,1713819043290,-15880.0044,0.00013598,2]
[323233971,1713819043300,-151.18729971,0.00013598,2]
[323233972,1713819043310,-169.11011791,0.00013598,2]
[323233973,1713819043320,-406.38071494,0.00013598,2]
[323233974,1713819043331,-1132.64330683,0.00013693,2]
[323233975,1713819043342,-1240.85468141,0.00013695,2]
[323233976,1713819043351,-359.18860075,0.00013696,2]
[323233977,1713819043362,-685723.2474071,0.00013697,2]
[323233978,1713819043371,-202.15750403,0.00013697,2]
[323233979,1713819043381,-199.29265944,0.00013697,2]
[323233980,1713819043391,-406900.80682863,0.00013698,2]
[323233981,1713819043402,-500.0,0.00013698,2]
[323233982,1713819043412,-500.0,0.00013698,2]
[323233983,1713819043423,-500.0,0.00013698,2]
[323233984,1713819043435,-500.0,0.00013698,2]
[323233985,1713819043444,-502.31724209,0.00013698,2]
[323233986,1713819043454,-500.0,0.00013698,2]
[323233987,1713819043463,-500.0,0.00013698,2]
[323233988,1713819043473,-973.1,0.00013698,2]
[323233990,1713819043483,-500.0,0.00013698,2]
[323233991,1713819043493,-500.0,0.00013698,2]
[323233993,1713819043504,-500.0,0.00013698,2]
[323233994,1713819043514,-920.92,0.00013698,2]
[323233995,1713819043525,-500.61237865,0.00013698,2]
[323233996,1713819043536,-500.0,0.00013698,2]
[323233997,1713819043547,-802.81,0.00013698,2]
[323233998,1713819043558,-499.32491829,0.00013698,2]
[323233999,1713819043568,-500.0,0.00013698,2]
[323234000,1713819043579,-500.0,0.00013698,2]
[323234001,1713819043589,-500.0,0.00013698,2]
[323234002,1713819043600,-500.0,0.00013698,2]
[323234003,1713819043612,-500.0,0.00013698,2]
[323234004,1713819043623,-500.0,0.00013698,2]
[323234005,1713819043633,-501.3669413,0.00013698,2]
[323234006,1713819043645,-500.0,0.00013698,2]
[323234007,1713819043656,-500.0,0.00013698,2]
[323234008,1713819043666,-500.0,0.00013698,2]
[323234009,1713819043678,-1103.9,0.00013698,2]
[323234010,1713819043689,-500.37285779,0.00013698,2]
[323234011,1713819043699,-500.0,0.00013698,2]
[323234012,1713819043710,-638.07,0.00013698,2]
[323234013,1713819043722,-487.79593101,0.00013698,2]
[323234014,1713819043733,-500.0,0.00013698,2]
[323234015,1713819043745,-500.0,0.00013698,2]
[323234016,1713819043756,-299.47078949,0.00013698,2]
[323234017,1713819043767,-500.0,0.00013698,2]
[323234018,1713819043778,-500.0,0.00013698,2]
[323234019,1713819043789,-500.0,0.00013698,2]
[323234020,1713819043799,-500.0,0.00013698,2]
[323234021,1713819043809,-493.21685218,0.00013698,2]
[323234022,1713819043819,-812.99,0.00013698,2]
[323234023,1713819043829,-500.0,0.00013698,2]
[323234024,1713819043841,-500.0,0.00013698,2]
[323234025,1713819043852,-603.53,0.00013698,2]
[323234026,1713819043862,-500.0,0.00013698,2]
[323234027,1713819043872,-500.0,0.00013698,2]
[323234028,1713819043883,-500.0,0.00013698,2]
[323234029,1713819043895,-500.0,0.00013698,2]
[323234030,1713819043906,-500.0,0.00013698,2]
[323234031,1713819043919,-589.36,0.00013698,2]
[323234032,1713819043929,-500.0,0.00013698,2]
[323234033,1713819043941,-501.12521013,0.00013698,2]
[323234034,1713819043953,-500.0,0.00013698,2]
[323234035,1713819043964,-580.55,0.00013698,2]
[323234036,1713819043975,-500.0,0.00013698,2]
[323234037,1713819043986,-542.86,0.00013698,2]
[323234038,1713819043996,-992.06,0.00013698,2]
[323234039,1713819044006,-519.76,0.00013698,2]
[323234040,1713819044017,-500.0,0.00013698,2]
[323234041,1713819044028,-500.0,0.00013698,2]
[323234042,1713819044040,-500.0,0.00013698,2]
[323234043,1713819044051,-500.0,0.00013698,2]
[323234044,1713819044064,-500.0,0.00013698,2]
[323234045,1713819044074,-500.0,0.00013698,2]
[323234046,1713819044084,-500.0,0.00013698,2]
[323234047,1713819044094,-500.0,0.00013698,2]
[323234048,1713819044103,-500.0,0.00013698,2]
[323234049,1713819044114,-1162.13,0.00013698,2]
[323234050,1713819044124,-1183.24,0.00013698,2]
[323234051,1713819044134,-257.74,0.00013698,2]
[323234052,1713819044145,-1998.52,0.00013698,2]
[323234053,1713819044157,-500.0,0.00013698,2]
[323234054,1713819044168,-693.72,0.00013698,2]
[323234055,1713819044178,-500.0,0.00013698,2]
[323234056,1713819044189,-500.0,0.00013698,2]
[323234057,1713819044199,-500.0,0.00013698,2]
[323234058,1713819044210,-500.0,0.00013698,2]
[323234059,1713819044219,-542.64,0.00013698,2]
[323234060,1713819044231,-1184.62,0.00013698,2]
[323234061,1713819044242,-500.0,0.00013698,2]
[323234062,1713819044253,-1501.26,0.00013698,2]
[323234063,1713819044263,-1820.17,0.00013698,2]
[323234064,1713819044273,-1169.52,0.00013698,2]
[323234065,1713819044283,-1201.4,0.00013698,2]
[323234066,1713819044294,-2492.72,0.00013698,2]
[323234067,1713819044305,-500.0,0.00013698,2]
[323234068,1713819044316,-1097.35,0.00013698,2]
[323234069,1713819044330,-1080.54,0.00013698,2]
[323234070,1713819044340,-500.0,0.00013698,2]
[323234071,1713819044351,-1000.60640984,0.00013698,2]
[323234072,1713819044375,-83.89359016,0.00013698,2]
[323234073,1713819044385,-500.0,0.00013698,2]
[323234074,1713819044394,-50.88165111,0.00013698,2]
[323234075,1713819044406,-449.11834889,0.00013698,2]
[323234076,1713819044416,-500.0,0.00013698,2]
[323234077,1713819044425,-500.0,0.00013698,2]
[323234078,1713819044435,-500.0,0.00013698,2]
[323234079,1713819044445,-500.0,0.00013698,2]
[323234080,1713819044455,-476.57181196,0.00013698,2]
[323234106,1713819045926,-13.04281232,0.00013698,2]
[323234108,1713819045936,-500.0,0.00013698,2]
[323234109,1713819045946,-225.53718766,0.00013698,2]
[323234110,1713819045958,-660.87101,0.00013698,2]
[323234111,1713819045970,-1088.5,0.00013698,2]
[323234112,1713819046732,-11.78180234,0.00013698,2]
[323234113,1713819046741,-500.0,0.00013698,2]
[323234114,1713819046750,-986.83,0.00013698,2]
[323234115,1713819046761,-500.0,0.00013698,2]
[323234116,1713819046770,-513.71,0.00013698,2]
[323234117,1713819046779,-500.0,0.00013698,2]
[323234118,1713819046788,-500.0,0.00013698,2]
[323234119,1713819046798,-500.0,0.00013698,2]
[323234120,1713819046808,-500.0,0.00013698,2]
[323234121,1713819046817,-500.0,0.00013698,2]
[323234122,1713819046826,-1090.7,0.00013698,2]
[323234123,1713819046835,-500.0,0.00013698,2]
[323234124,1713819046845,-500.0,0.00013698,2]
[323234125,1713819046855,-500.0,0.00013698,2]
[323234126,1713819046864,-514.74367535,0.00013698,2]
[323234127,1713819046873,-543.20521526,0.00013698,2]
[323234128,1713819046883,-1223.62,0.00013698,2]
[323234129,1713819046892,-1197.06,0.00013698,2]
[323234130,1713819046901,-500.0,0.00013698,2]
[323234132,1713819046910,-1267.91,0.00013698,2]
[323234134,1713819046919,-500.0,0.00013698,2]
[323234136,1713819046929,-585.12,0.00013698,2]
[323234138,1713819046940,-725.96,0.00013698,2]
[323234139,1713819046949,-500.0,0.00013698,2]
[323234140,1713819046958,-711.41,0.00013698,2]
[323234141,1713819046967,-839.57,0.00013698,2]
[323234142,1713819046977,-500.0,0.00013698,2]
[323234143,1713819046986,-500.0,0.00013698,2]
[323234144,1713819046995,-2903.08,0.00013698,2]
[323234145,1713819047005,-1881.15,0.00013698,2]
[323234146,1713819047014,-760.11,0.00013698,2]
[323234147,1713819047024,-783.42,0.00013698,2]
[323234148,1713819047033,-500.0,0.00013698,2]
[323234149,1713819047043,-509.91947963,0.00013698,2]
[323234150,1713819047052,-773.18,0.00013698,2]
[323234151,1713819047062,-500.0,0.00013698,2]
[323234152,1713819047071,-500.0,0.00013698,2]
[323234153,1713819047081,-500.0,0.00013698,2]
[323234154,1713819047090,-2083.73,0.00013698,2]
[323234155,1713819047100,-500.0,0.00013698,2]
[323234156,1713819047109,-1427.08,0.00013698,2]
[323234157,1713819047119,-500.0,0.00013698,2]
[323234158,1713819047128,-1531.24,0.00013698,2]
[323234159,1713819047137,-500.0,0.00013698,2]
[323234160,1713819047148,-500.0,0.00013698,2]
[323234161,1713819047159,-549.83,0.00013698,2]
[323234162,1713819047168,-500.0,0.00013698,2]
[323234163,1713819047177,-500.0,0.00013698,2]
[323234164,1713819047188,-1613.14,0.00013698,2]
[323234165,1713819047198,-500.0,0.00013698,2]
[323234166,1713819047207,-500.0,0.00013698,2]
[323234167,1713819047219,-500.0,0.00013698,2]
[323234168,1713819047229,-834.94,0.00013698,2]
[323234169,1713819047240,-500.0,0.00013698,2]
[323234170,1713819047250,-500.0,0.00013698,2]
[323234171,1713819047259,-500.0,0.00013698,2]
[323234172,1713819047269,-500.0,0.00013698,2]
[323234173,1713819047279,-500.0,0.00013698,2]
[323234174,1713819047288,-561.05311314,0.00013698,2]
[323234175,1713819047298,-435.65771736,0.00013698,2]
[323234176,1713819047307,-500.0,0.00013698,2]
[323234177,1713819047318,-568.68,0.00013698,2]
[323234178,1713819047329,-500.0,0.00013698,2]
[323234179,1713819047340,-769.07,0.00013698,2]
[323234180,1713819047351,-626.04,0.00013698,2]
[323234181,1713819047362,-694.18,0.00013698,2]
[323234182,1713819047373,-500.0,0.00013698,2]
[323234183,1713819047384,-1327.33,0.00013698,2]
[323234184,1713819047394,-500.0,0.00013698,2]
[323234185,1713819047405,-1174.87,0.00013698,2]
[323234186,1713819047416,-500.0,0.00013698,2]
[323234187,1713819047428,-510.88,0.00013698,2]
[323234188,1713819047443,-500.0,0.00013698,2]
[323234189,1713819047456,-500.0,0.00013698,2]
[323234190,1713819047467,-1276.26,0.00013698,2]
[323234191,1713819047485,-500.0,0.00013698,2]
[323234192,1713819047497,-500.0,0.00013698,2]
[323234193,1713819047507,-780.77,0.00013698,2]
[323234194,1713819047518,-1361.18,0.00013698,2]
[323234195,1713819047528,-1968.57,0.00013698,2]
[323234196,1713819047538,-500.0,0.00013698,2]
[323234197,1713819047550,-698.47,0.00013698,2]
[323234198,1713819047561,-500.0,0.00013698,2]
[323234199,1713819047572,-500.0,0.00013698,2]
[323234200,1713819047583,-1723.14,0.00013698,2]
[323234201,1713819047595,-500.0,0.00013698,2]
[323234202,1713819047606,-561.33,0.00013698,2]
[323234203,1713819047617,-500.0,0.00013698,2]
[323234204,1713819047628,-500.0,0.00013698,2]
[323234205,1713819047639,-1169.21,0.00013698,2]
[323234206,1713819047650,-500.0,0.00013698,2]
[323234207,1713819047662,-500.0,0.00013698,2]
[323234208,1713819047672,-500.0,0.00013698,2]
[323234209,1713819047685,-646.59,0.00013698,2]
[323234210,1713819047709,-657.01,0.00013698,2]
[323234211,1713819047720,-1305.53,0.00013698,2]
[323234212,1713819047733,-500.0,0.00013698,2]
[323234213,1713819047744,-2533.41,0.00013698,2]
[323234214,1713819047755,-1660.37,0.00013698,2]
[323234215,1713819047766,-1192.15,0.00013698,2]
[323234216,1713819047777,-501.67808095,0.00013698,2]
[323234217,1713819047789,-824.9,0.00013698,2]
[323234218,1713819047800,-500.0,0.00013698,2]
[323234219,1713819047811,-9358.46,0.00013698,2]
[323234220,1713819047822,-2442.13,0.00013698,2]
[323234221,1713819047835,-500.0,0.00013698,2]
[323234222,1713819047846,-1003.93,0.00013698,2]
[323234223,1713819047857,-500.0,0.00013698,2]
[323234224,1713819047867,-500.0,0.00013698,2]
[323234225,1713819047878,-500.0,0.00013698,2]
[323234226,1713819047888,-522.45,0.00013698,2]
[323234227,1713819047899,-1383.82,0.00013698,2]
[323234228,1713819047910,-500.0,0.00013698,2]
[323234229,1713819047920,-1539.07,0.00013698,2]
[323234230,1713819047931,-500.0,0.00013698,2]
[323234231,1713819047948,-1055.71,0.00013698,2]
[323234232,1713819047958,-632.89,0.00013698,2]
[323234233,1713819047968,-500.0,0.00013698,2]
[323234234,1713819047978,-874.64291599,0.00013698,2]
[323234235,1713819047992,-1608.67708401,0.00013698,2]
[323234236,1713819048001,-3588.22,0.00013698,2]
[323234237,1713819048010,-500.0,0.00013698,2]
[323234238,1713819048020,-500.0,0.00013698,2]
[323234239,1713819048029,-57.81071632,0.00013698,2]
[323234241,1713819096658,990.042305,0.00022,30]
[323234244,1713819202604,159.80423538,0.00011192,2]
[323234247,1713819569667,180.06,9.908e-05,2]
[323234248,1713819598847,1149.5658,0.00011185,2]
[323234249,1713819632783,229.88,0.00010558,2]
[323234260,1713820232023,-749.39614139,0.00011253,2]
[323234261,1713820232032,-85.61343179,0.00011254,2]
[323234265,1713820232079,-273.71324403,0.00011254,2]
[323234266,1713820232088,-593.96004838,0.00011254,2]
[323234267,1713820232101,-1214.84765689,0.00011254,2]
[323234268,1713820232133,-695.72180476,0.00011254,2]
[323234269,1713820232144,-785.17530004,0.00011254,2]
[323234270,1713820232156,-860.85972681,0.00011254,2]
[323234271,1713820232189,-319.50034176,0.00011254,2]
[323234272,1713820232243,-258.68411905,0.00011254,2]
[323234273,1713820232252,-300.0,0.00011255,2]
[323234274,1713820232262,-150.0,0.00011255,2]
[323234275,1713820232271,-150.0,0.00011255,2]
[323234276,1713820232282,-537.75403605,0.00011261,2]
[323234277,1713820232291,-257.41029778,0.000117,2]
[323234278,1713820232300,-250.0,0.0001187,2]
[323234279,1713820232309,-1750.0,0.00012,2]
[323234280,1713820232318,-665.36,0.00012023,2]
[323234281,1713820232328,-200.0,0.00012046,2]
[323234282,1713820232337,-7320.09174712,0.00012162,2]
[323234285,1713820232366,-442.695,0.00012162,2]
[323234287,1713820232377,-7603.85073837,0.00012162,2]
[323234290,1713820237993,-1005.42999999,0.00012162,2]
[323234293,1713820238006,-6109.33251452,0.00012162,2]
[323234295,1713820238015,-999.99,0.00012162,2]
[323234297,1713820238024,-311.46,0.00012162,2]
[323234299,1713820238033,-500.0,0.0001221,2]
[323234301,1713820238042,-1293.06,0.00012211,2]
[323234302,1713820238051,-1092.42,0.00012211,2]
[323234303,1713820238061,-164.21,0.00012276,2]
[323234304,1713820238071,-155.0,0.00012327,2]
[323234305,1713820238081,-156.53,0.00012381,2]
[323234306,1713820238092,-499.99,0.00012451,2]
[323234307,1713820238104,-8556.8338866,0.00012666,2]
[323234308,1713820238115,-1611.49608304,0.00012666,2]
[323234309,1713820238126,-491.23190878,0.00012666,2]
[323234310,1713820238137,-875.65460693,0.00012666,2]
[323234311,1713820238148,-706.87298526,0.00012666,2]
[323234312,1713820238163,-980.5760366,0.00012666,2]